bitfinex/quotes_BTCUSD_20220306
["timestamp","ask_amount","ask_price","bid_price","bid_amount"]
[1646574084084,0.03766802,38953.0,38944.0,0.15]
[1646574084288,0.03766802,38953.0,38944.0,0.45]
[1646574084484,0.03766802,38953.0,38944.0,0.3]
[1646574084786,0.18506664,38952.0,38944.0,0.45]
[1646574085187,0.19596338,38950.0,38944.0,0.45]
[1646574085587,0.19596338,38950.0,38944.0,0.15]
[1646574086946,0.03872569,38954.0,38944.0,0.45]
[1646574087441,0.03872569,38954.0,38944.0,0.15]
[1646574087641,0.03872569,38954.0,38945.0,0.15]
[1646574088041,0.1623783,38950.0,38943.0,0.67758042]
[1646574089042,0.03872569,38954.0,38944.0,0.15]
[1646574090042,0.19340252,38951.0,38944.0,0.15]
[1646574090441,0.19340252,38951.0,38943.0,0.67758042]
[1646574090442,0.37113349,38951.0,38943.0,0.67758042]
[1646574092483,0.17773097,38951.0,38943.0,0.67758042]
[1646574092886,0.01105595,38950.0,38943.0,0.67758042]
[1646574093287,0.17773097,38951.0,38943.0,0.67758042]
[1646574093686,0.01105595,38950.0,38943.0,0.67758042]
[1646574094529,0.35291462,38949.0,38943.0,0.67758042]
[1646574094934,0.16336695,38945.0,38943.0,0.67758042]
[1646574097629,0.16336695,38945.0,38943.0,0.67747561]
[1646574098691,0.15291463,38949.0,38943.0,0.67747561]
[1646574099684,0.21196832,38948.0,38943.0,0.67747561]
[1646574101084,0.27622732,38948.0,38943.0,0.67747561]
[1646574101485,0.21196832,38948.0,38943.0,0.67747561]
[1646574107679,0.21196832,38948.0,38943.0,0.67247561]
[1646574111039,0.21196832,38948.0,38943.0,0.21752061]
[1646574111842,0.42302426,38948.0,38943.0,0.21752061]
[1646574112841,0.22302427,38948.0,38943.0,0.21752061]
[1646574113083,0.26426499,38946.0,38943.0,0.21752061]
[1646574113287,0.064265,38946.0,38943.0,0.21752061]
[1646574113487,0.51105594,38945.0,38943.0,0.21752061]
[1646574113684,0.3,38944.0,38943.0,0.21599563]
[1646574114485,0.364272,38944.0,38943.0,0.21599563]
[1646574115485,0.3,38944.0,38943.0,0.21599563]
[1646574115687,0.21105594,38945.0,38943.0,0.21599563]
[1646574115890,0.77034,38944.0,38943.0,0.21599563]
[1646574118441,0.80900369,38944.0,38943.0,0.21599563]
[1646574119442,0.82005964,38944.0,38943.0,0.21599563]
[1646574119638,0.92834136,38944.0,38943.0,0.21599563]
[1646574119839,0.82005964,38944.0,38943.0,0.21599563]
[1646574120038,0.92834136,38944.0,38943.0,0.21599563]
[1646574120243,1.22834136,38944.0,38943.0,0.21599563]
[1646574121484,1.29261136,38944.0,38943.0,0.21599563]
[1646574122485,1.22834136,38944.0,38943.0,0.21599563]
[1646574124730,0.92834136,38944.0,38943.0,0.21599563]
[1646574125034,0.91728541,38944.0,38943.0,0.21599563]
[1646574125231,0.87862172,38944.0,38943.0,0.21599563]
[1646574125431,0.77034,38944.0,38943.0,0.21599563]
[1646574134838,0.80949286,38944.0,38943.0,0.21599563]
[1646574135688,0.80949286,38944.0,38943.0,0.21589567]
[1646574139957,0.77034,38944.0,38943.0,0.21589567]
[1646574144593,0.77023133,38944.0,38943.0,0.21589567]
[1646574145189,1.00958447,38944.0,38943.0,0.21589567]
[1646574145393,1.15,38943.0,38941.0,0.00022112]
[1646574145591,1.2215699,38943.0,38941.0,0.00022112]
[1646574145788,0.13215767,38942.0,38941.0,0.00022112]
[1646574145990,0.29039272,38942.0,38941.0,0.00022112]
[1646574146490,0.27757272,38942.0,38936.0,0.035]
[1646574146688,0.19999999,38938.0,38936.0,0.035]
[1646574146940,0.19351124,38937.0,38936.0,0.035]
[1646574147335,1.15,38936.0,38929.0,0.1592]
[1646574147540,1.15,38936.0,38921.0,0.01284]
[1646574147541,0.15167202,38925.0,38921.0,0.01284]
[1646574147737,0.3,38925.0,38918.0,0.15]
[1646574147936,0.3,38925.0,38916.0,0.1694]
[1646574147937,0.21105594,38928.0,38917.0,0.165]
[1646574148339,0.16547811,38923.0,38918.0,0.15]
[1646574149236,0.16547811,38923.0,38917.0,0.15]
[1646574149739,0.16205017,38922.0,38917.0,0.15]
[1646574150135,0.16547811,38923.0,38917.0,0.15]
[1646574150339,0.03783915,38928.0,38922.0,0.15]
[1646574150596,0.51105594,38932.0,38922.0,0.15]
[1646574150597,0.61933766,38932.0,38922.0,0.15]
[1646574150791,0.65765938,38932.0,38922.0,0.15]
[1646574151189,0.19744461,38931.0,38922.0,0.15]
[1646574151391,0.3,38930.0,38925.0,0.00023973]
[1646574151691,0.19744461,38931.0,38925.0,0.00023973]
[1646574151891,0.19999999,38929.0,38925.0,0.00023973]
[1646574152091,0.19744461,38931.0,38925.0,0.00023973]
[1646574152490,0.19744461,38931.0,38922.0,0.15]
[1646574152690,0.19744461,38931.0,38926.0,0.00023973]
[1646574153290,0.19355469,38930.0,38926.0,0.00023973]
[1646574153692,0.49744461,38931.0,38923.0,0.003]
[1646574153992,0.51024461,38931.0,38926.0,0.00023539]
[1646574154639,0.19353861,38929.0,38926.0,0.00023539]
[1646574154840,0.19353861,38929.0,38922.0,0.15]
[1646574155035,0.19353861,38929.0,38927.0,0.00022721]
[1646574155736,0.19999999,38930.0,38927.0,0.00022721]
[1646574156135,0.19999999,38930.0,38921.0,0.15]
[1646574156136,0.3,38929.0,38921.0,0.15]
[1646574156337,0.3,38929.0,38927.0,0.00022721]
[1646574156536,0.19999999,38928.0,38927.0,0.00022721]
[1646574156736,0.39034729,38928.0,38927.0,0.00022721]
[1646574156940,0.69034729,38928.0,38927.0,0.00022721]
[1646574157137,0.39034729,38928.0,38927.0,0.00022721]
[1646574157337,0.39034729,38928.0,38919.0,0.15]
[1646574157539,0.20590071,38922.0,38917.0,0.1664]
[1646574157736,0.20590071,38922.0,38917.0,0.3164]
[1646574158092,0.20590071,38922.0,38917.0,0.15]
[1646574158687,0.20590071,38922.0,38918.0,0.15022076]
[1646574159688,0.20590071,38922.0,38918.0,0.15]
[1646574159989,0.24478045,38922.0,38918.0,0.15022076]
[1646574160589,0.3,38927.0,38918.0,0.15022076]
[1646574160792,0.31139902,38928.0,38917.0,0.004]
[1646574160793,0.12105172,38928.0,38919.0,0.15]
[1646574160990,0.01277,38928.0,38924.0,0.15]
[1646574161189,0.01276,38930.0,38924.0,0.15]
[1646574161389,0.34660343,38932.0,38921.0,0.00010689]
[1646574161390,0.26425171,38932.0,38921.0,0.00010689]
[1646574161592,0.19293465,38928.0,38921.0,0.15010689]
[1646574161841,0.2039906,38928.0,38921.0,0.00010689]
[1646574162046,0.2039906,38928.0,38921.0,0.15]
[1646574162239,0.2039906,38928.0,38923.0,0.0001068]
[1646574162844,0.15105379,38925.0,38923.0,0.0001068]
[1646574163043,0.36210973,38925.0,38923.0,0.0001068]
[1646574163240,0.36210973,38925.0,38919.0,0.15]
[1646574163440,0.3,38924.0,38922.0,0.0001068]
[1646574163646,0.36210973,38925.0,38922.0,0.0001068]
[1646574164440,0.36210973,38925.0,38918.0,0.15]
[1646574164640,0.36210973,38925.0,38922.0,0.00023638]
[1646574165686,0.16210974,38925.0,38918.0,0.15]
[1646574165885,0.16989576,38921.0,38918.0,0.15]
[1646574166687,0.21105594,38924.0,38918.0,0.15]
[1646574167087,0.21105594,38924.0,38918.0,0.15024431]
[1646574167286,0.21105594,38924.0,38918.0,0.00024431]
[1646574167689,0.15105379,38925.0,38918.0,0.00024431]
[1646574167887,0.36210973,38925.0,38919.0,0.15]
[1646574168092,0.15105379,38925.0,38919.0,0.15]
[1646574168388,0.36210973,38925.0,38920.0,0.00024431]
[1646574168586,0.15105379,38925.0,38920.0,0.00024431]
[1646574169439,0.15105379,38925.0,38921.0,0.00023533]
[1646574169838,0.16210974,38925.0,38921.0,0.00023533]
[1646574170037,0.15105379,38925.0,38921.0,0.00023533]
[1646574170439,0.15105379,38925.0,38918.0,0.15]
[1646574170645,0.15105379,38925.0,38921.0,0.00023533]
[1646574171037,0.15105379,38925.0,38921.0,0.00014763]
[1646574171739,0.16210974,38925.0,38918.0,0.15]
[1646574172141,0.15506191,38926.0,38918.0,0.15]
[1646574173193,0.15081109,38923.0,38920.0,0.000236]
[1646574173489,0.15506191,38926.0,38920.0,0.000236]
[1646574173691,0.21105594,38924.0,38920.0,0.000236]
[1646574174090,0.21105594,38924.0,38918.0,0.15]
[1646574174290,0.01105595,38924.0,38920.0,0.000236]
[1646574174493,0.21105594,38924.0,38920.0,0.000236]
[1646574175296,0.21105594,38924.0,38918.0,0.14]
[1646574175496,0.20944034,38922.0,38920.0,0.000236]
[1646574176097,0.21105594,38924.0,38920.0,0.000236]
[1646574176501,0.21105594,38924.0,38918.0,0.14]
[1646574176698,0.21105594,38924.0,38920.0,0.00023589]
[1646574176940,0.18157143,38921.0,38920.0,0.00023589]
[1646574177144,0.21105594,38924.0,38920.0,0.00023589]
[1646574177742,0.21105594,38924.0,38917.0,0.14]
[1646574177941,0.21105594,38924.0,38920.0,0.00023589]
[1646574178141,0.15671996,38923.0,38920.0,0.00023589]
[1646574178940,0.15671996,38923.0,38917.0,0.14]
[1646574179142,0.15671996,38923.0,38920.0,0.00023589]
[1646574180142,0.15671996,38923.0,38917.0,0.14]
[1646574180344,0.15671996,38923.0,38920.0,0.0002359]
[1646574180590,0.21105594,38924.0,38920.0,0.0002359]
[1646574181193,0.01272,38928.0,38920.0,0.0002359]
[1646574181397,0.1814307,38930.0,38920.0,0.28040619]
[1646574181596,0.14660344,38932.0,38928.0,0.14]
[1646574181893,0.17104,38937.0,38930.0,0.14]
[1646574181894,0.01264,38937.0,38930.0,0.14]
[1646574182093,0.10828172,38937.0,38933.0,0.14]
[1646574182294,0.02365595,38942.0,38928.0,0.02593]
[1646574182494,0.02365595,38942.0,38935.0,0.14]
[1646574182895,0.42440864,38943.0,38935.0,0.14]
[1646574183095,0.28563594,38943.0,38935.0,0.14]
[1646574183293,0.29591994,38943.0,38935.0,0.14]
[1646574183499,0.28563594,38943.0,38935.0,0.14]
[1646574183694,0.19768608,38940.0,38935.0,0.14]
[1646574186150,0.19761771,38940.0,38935.0,0.14]
[1646574186848,0.27283594,38943.0,38936.0,0.02593]
[1646574186849,0.10828172,38943.0,38936.0,0.02593]
[1646574187048,0.10828172,38943.0,38939.0,0.14]
[1646574187248,0.77023133,38944.0,38936.0,0.02593]
[1646574187450,0.77023133,38944.0,38942.0,0.14]
[1646574188893,0.20159409,38943.0,38936.0,0.02593]
[1646574189093,0.20159409,38943.0,38940.0,0.14]
[1646574189596,0.17894481,38941.0,38940.0,0.14]
[1646574190294,0.17894481,38941.0,38937.0,0.004]
[1646574190693,0.17894481,38941.0,38931.0,0.00097385]
[1646574190893,0.17894481,38941.0,38929.0,0.17040611]
[1646574191094,0.17894481,38941.0,38930.0,0.02593]
[1646574191300,0.15397111,38937.0,38929.0,0.17040611]
[1646574191495,0.17894481,38941.0,38929.0,0.17040611]
[1646574191694,0.31105595,38946.0,38939.0,0.14]
[1646574191695,0.10828172,38946.0,38939.0,0.14]
[1646574191950,0.2387727,38950.0,38945.0,0.14]
[1646574192150,0.10708831,38959.0,38950.0,0.75]
[1646574192348,0.1970207,38957.0,38955.0,0.14]
[1646574192545,0.1514927,38960.0,38955.0,0.14]
[1646574192546,0.1387727,38960.0,38955.0,0.14]
[1646574192745,0.1387727,38960.0,38955.0,0.20728863]
[1646574192948,0.0126,38959.0,38955.0,0.20728863]
[1646574193148,0.0021,38961.0,38958.0,0.14]
[1646574193349,0.0021,38961.0,38959.0,0.3]
[1646574193547,0.0021,38961.0,38959.0,0.14]
[1646574194149,0.0021,38961.0,38960.0,0.3]
[1646574194746,0.00196096,38961.0,38959.0,0.14]
[1646574195350,0.0021,38965.0,38961.0,1.15]
[1646574195603,0.0021,38965.0,38962.0,0.16593]
[1646574196599,0.56240315,38980.0,38962.0,0.16593]
[1646574196600,0.0043,38987.0,38963.0,1.15]
[1646574196806,0.2703817,38989.0,38982.0,0.14]
[1646574196807,0.0033,38988.0,38982.0,0.14]
[1646574197004,0.0033,38988.0,38987.0,0.16593]
[1646574197201,0.0043,38990.0,38987.0,0.46593]
[1646574197400,0.35202864,38998.0,38989.0,0.14]
[1646574197401,0.0032,38995.0,38989.0,0.14]
[1646574197602,0.2011,39002.0,38989.0,0.14]
[1646574197603,0.2011,39002.0,38994.0,0.14]
[1646574197799,0.2021,39002.0,38996.0,0.02593]
[1646574198000,0.0021,39002.0,39000.0,0.14]
[1646574198502,0.0021,39002.0,39000.0,0.1389]
[1646574198701,0.0021,39002.0,38997.0,0.064155]
[1646574198909,0.0021,39002.0,38992.0,0.3]
[1646574199099,0.0021,39002.0,38989.0,0.1389]
[1646574199349,0.0021,39002.0,38992.0,0.004]
[1646574199551,0.01105595,38998.0,38992.0,0.004]
[1646574199751,0.0021,39002.0,38992.0,0.004]
[1646574199752,0.21105594,38995.0,38992.0,0.004]
[1646574200349,0.28819346,38996.0,38992.0,0.004]
[1646574200350,0.19999999,38993.0,38992.0,0.004]
[1646574200549,0.01105595,38994.0,38992.0,0.004]
[1646574200751,0.01105595,38999.0,38989.0,0.064168]
[1646574200950,0.00025166,38995.0,38985.0,0.3]
[1646574201151,0.00025166,38995.0,38985.0,0.32593]
[1646574201455,0.00025166,38995.0,38986.0,0.133333]
[1646574201652,0.00025166,38995.0,38987.0,0.3]
[1646574201852,0.18563756,38999.0,38987.0,0.3]
[1646574202051,0.00025167,38992.0,38987.0,0.3]
[1646574202454,0.00025167,38992.0,38989.0,0.090096]
[1646574202655,0.00025167,38992.0,38991.0,0.16483]
[1646574202852,0.00025167,38992.0,38991.0,0.46483]
[1646574203093,0.0021,39004.0,38991.0,0.46483]
[1646574203293,0.00012981,38993.0,38991.0,0.46483]
[1646574203494,0.00012981,38993.0,38991.0,0.1389]
[1646574203696,0.00012981,38993.0,38990.0,0.064161]
[1646574204292,0.17001055,39002.0,38990.0,0.064161]
[1646574204492,0.00024731,38993.0,38991.0,0.3]
[1646574204692,0.00024731,38993.0,38990.0,0.064161]
[1646574205295,0.00024731,38993.0,38989.0,0.6389]
[1646574205492,0.17955656,38996.0,38989.0,0.6449]
[1646574205693,0.00024731,38993.0,38989.0,0.6449]
[1646574205893,0.00024731,38993.0,38989.0,0.1449]
[1646574206098,0.00024731,38993.0,38989.0,0.4449]
[1646574206294,0.00024731,38993.0,38990.0,0.064168]
[1646574206697,0.01105595,39000.0,38990.0,0.064168]
[1646574206698,0.21259369,39000.0,38990.0,0.064168]
[1646574206938,0.00024731,38993.0,38991.0,0.3]
[1646574207138,0.00024731,38993.0,38990.0,0.064168]
[1646574207541,0.00024731,38993.0,38985.0,0.006]
[1646574207542,0.20676178,38988.0,38985.0,0.006]
[1646574207742,0.00024731,38993.0,38986.0,0.5]
[1646574207938,0.21105594,38994.0,38986.0,0.5]
[1646574208140,0.21105594,38994.0,38985.0,0.006]
[1646574208339,0.0002355,38988.0,38985.0,0.006]
[1646574209140,0.21199781,38994.0,38985.0,0.006]
[1646574209141,0.21105594,38994.0,38985.0,0.006]
[1646574209345,0.0002355,38988.0,38984.0,0.002]
[1646574209741,0.08312116,38997.0,38985.0,0.95]
[1646574209942,0.08312116,38997.0,38986.0,0.3]
[1646574210344,0.08312116,38997.0,38985.0,0.064176]
[1646574210789,0.17144534,38995.0,38986.0,0.3]
[1646574210992,0.17144534,38995.0,38985.0,0.064176]
[1646574211589,0.17144534,38995.0,38986.0,0.00023248]
[1646574211993,0.00023243,38996.0,38986.0,0.00023248]
[1646574212190,0.00023243,38996.0,38986.0,0.30023248]
[1646574212589,0.00023243,38996.0,38986.0,0.3]
[1646574212788,0.08312116,38997.0,38986.0,0.30023249]
[1646574212989,0.00023243,38996.0,38986.0,0.30023249]
[1646574213591,0.15728115,38994.0,38986.0,0.00023249]
[1646574213792,0.08312116,38997.0,38985.0,0.064176]
[1646574213992,0.08312116,38997.0,38986.0,0.00023248]
[1646574214192,0.00023243,38996.0,38986.0,0.00023248]
[1646574214845,0.19820158,38996.0,38986.0,0.00023248]
[1646574215043,0.19796915,38996.0,38984.0,0.428344]
[1646574215244,0.19819046,38996.0,38986.0,0.00022137]
[1646574216246,0.19796915,38996.0,38984.0,0.428344]
[1646574216449,0.20898804,38995.0,38986.0,0.00022137]
[1646574216650,0.00022131,38996.0,38986.0,0.00022137]
[1646574216851,0.00022131,38996.0,38988.0,0.064168]
[1646574217451,0.0021,39002.0,38988.0,0.064168]
[1646574217648,0.00022132,38996.0,38988.0,0.064168]
[1646574218090,0.00022132,38996.0,38986.0,0.00022137]
[1646574218292,0.19447342,38993.0,38986.0,0.00022137]
[1646574218690,0.19447342,38993.0,38984.0,0.15]
[1646574218691,0.20880113,38992.0,38984.0,0.15]
[1646574218891,0.20880113,38992.0,38986.0,0.00022241]
[1646574219896,0.0261,39003.0,38989.0,0.15]
[1646574220096,0.00022235,38996.0,38990.0,0.3]
[1646574220494,0.00022235,38996.0,38990.0,0.295]
[1646574220693,0.00022235,38996.0,38986.0,0.15022241]
[1646574220892,0.32545096,38994.0,38986.0,0.15022241]
[1646574221092,0.32545096,38994.0,38986.0,0.15]
[1646574221292,0.32545096,38994.0,38986.0,0.00022241]
[1646574221691,0.00022236,38996.0,38987.0,0.17593]
[1646574221949,0.00022236,38996.0,38987.0,0.15]
[1646574222157,0.00022236,38996.0,38986.0,0.36439441]
[1646574222352,0.07309604,38999.0,38986.0,0.064172]
[1646574222552,0.00022224,38996.0,38986.0,0.36439429]
[1646574222753,0.07309604,38999.0,38986.0,0.36439429]
[1646574222754,0.0011,39003.0,38989.0,1.15]
[1646574222952,0.0011,39003.0,38997.0,0.090079]
[1646574223150,0.0011,39003.0,38998.0,0.3]
[1646574223351,0.0011,39003.0,39000.0,0.17593]
[1646574223553,0.0011,39003.0,39001.0,0.3]
[1646574223751,0.0001,39002.0,39000.0,0.15]
[1646574223952,0.0001,39002.0,39001.0,0.02593]
[1646574224152,0.0001,39002.0,39001.0,0.02093]
[1646574224352,0.002,39005.0,39003.0,0.95]
[1646574224552,0.002,39005.0,39004.0,0.45]
[1646574224952,0.0021,39006.0,39005.0,0.8]
[1646574225159,0.7950255,39023.0,39005.0,1.15]
[1646574225160,0.2527255,39023.0,39005.0,1.15]
[1646574225355,0.17821313,39018.0,39006.0,0.15]
[1646574225596,0.17821313,39018.0,39007.0,0.3]
[1646574225802,0.03821629,39024.0,39007.0,0.3]
[1646574226003,0.20969457,39025.0,39008.0,1.17593]
[1646574226202,0.00100705,39016.0,39011.0,0.02593]
[1646574226397,0.00100705,39016.0,39011.0,0.32593]
[1646574226599,0.00100705,39016.0,39011.0,0.3]
[1646574226798,0.00100705,39016.0,39014.0,0.15]
[1646574227000,0.00100705,39016.0,39014.0,0.17593]
[1646574227198,0.03762542,39028.0,39015.0,0.3]
[1646574227398,0.00025178,39017.0,39015.0,0.3]
[1646574227597,0.00025178,39017.0,39013.0,0.3]
[1646574227901,0.00025178,39017.0,39011.0,0.071127]
[1646574228103,0.00025178,39017.0,39011.0,0.007]
[1646574228398,0.26100121,39016.0,39011.0,0.007]
[1646574228597,0.26125299,39016.0,39006.0,0.3]
[1646574228998,0.20603381,39016.0,39006.0,0.3]
[1646574229198,0.20603381,39016.0,39007.0,0.240063]
[1646574229445,0.17391345,39019.0,39008.0,0.3]
[1646574229845,0.00012876,39013.0,39008.0,0.3]
[1646574230048,0.0011,39029.0,39014.0,0.02593]
[1646574230247,0.21254586,39029.0,39020.0,0.15]
[1646574230647,0.21254586,39029.0,39016.0,0.02593]
[1646574230848,0.21254586,39029.0,39018.0,0.17593]
[1646574231045,0.21254586,39029.0,39019.0,0.3]
[1646574231446,0.0011,39029.0,39019.0,0.3]
[1646574232051,0.1998941,39024.0,39017.0,0.133221]
[1646574232251,0.1998941,39024.0,39017.0,0.005]
[1646574232451,0.16481644,39020.0,39017.0,0.005]
[1646574232650,0.15481644,39020.0,39013.0,0.464127]
[1646574232850,0.15481644,39020.0,39013.0,0.164127]
[1646574233100,0.18097618,39018.0,39013.0,0.164127]
[1646574233304,0.18097618,39018.0,39009.0,0.064134]
[1646574233500,0.08097618,39018.0,39010.0,0.006]
[1646574233898,0.385126,39017.0,39010.0,0.006]
[1646574234300,0.49859357,39012.0,39010.0,0.006]
[1646574234498,0.28573374,39012.0,39010.0,0.006]
[1646574234700,0.28573374,39012.0,39004.0,0.00025268]
[1646574235498,0.28573374,39012.0,39001.0,0.3]
[1646574235499,0.21754142,39012.0,39002.0,0.064146]
[1646574235803,0.00025254,39021.0,39004.0,0.00025266]
[1646574236600,0.00025254,39021.0,39006.0,0.06414]
[1646574236601,0.05731785,39018.0,39006.0,0.06414]
[1646574236846,0.05731785,39018.0,39007.0,0.3]
[1646574238246,0.05731785,39018.0,39006.0,0.06414]
[1646574238650,0.16509608,39015.0,39006.0,0.3]
[1646574238846,0.16509608,39015.0,39005.0,0.15]
[1646574239448,0.35731785,39018.0,39007.0,0.064137]
[1646574239746,0.17738363,39012.0,39005.0,0.15]
[1646574240446,0.96000001,39009.0,39005.0,0.15]
[1646574242502,0.96000001,39009.0,39004.0,0.00021906]
[1646574242703,0.96000001,39009.0,38996.0,0.1]
[1646574242704,0.96000001,39009.0,38996.0,0.45]
[1646574242902,0.96000001,39009.0,39004.0,0.00021906]
[1646574243706,0.20695793,39007.0,39004.0,0.00021906]
[1646574243902,0.20695793,39007.0,38995.0,0.15]
[1646574244201,0.27015611,39008.0,38995.0,0.15]
[1646574244202,0.16857839,39001.0,38995.0,0.15]
[1646574244446,0.15815599,39002.0,38995.0,0.15]
[1646574244646,0.15815599,39002.0,38993.0,0.376971]
[1646574244848,0.15815599,39002.0,38993.0,0.076971]
[1646574245149,0.15815599,39002.0,38993.0,0.30781]
[1646574245347,0.18583615,38996.0,38993.0,0.00781]
[1646574245549,0.21184255,38997.0,38996.0,0.3716723]
[1646574246547,3.06849758,38997.0,38996.0,0.3716723]
[1646574248398,2.85665503,38997.0,38996.0,0.3716723]
[1646574249400,2.6399,38997.0,38996.0,0.3716723]
[1646574250400,2.6399,38997.0,38996.0,1.10641134]
[1646574250604,2.8999,38997.0,38996.0,1.55641134]
[1646574252144,2.73397966,38997.0,38996.0,1.71093904]
[1646574252345,0.05725,39008.0,38998.0,0.02593]
[1646574252645,0.05725,39008.0,38999.0,0.02593]
[1646574252646,0.24000001,39003.0,38999.0,0.02593]
[1646574253043,0.24000001,39003.0,38998.0,0.464137]
[1646574253243,0.06154772,39016.0,39003.0,1.15]
[1646574253244,0.00024524,39016.0,39003.0,1.15]
[1646574253447,0.00024524,39016.0,39015.0,0.17593]
[1646574253647,0.0011,39032.0,39016.0,0.7867]
[1646574253846,0.0011,39032.0,39017.0,0.45]
[1646574253847,0.0009809,39025.0,39017.0,0.45]
[1646574254044,0.0009809,39025.0,39019.0,0.15]
[1646574254252,0.0009809,39025.0,39017.0,0.3]
[1646574254445,0.21359135,39022.0,39016.0,0.1]
[1646574254644,0.21359135,39022.0,39018.0,0.064107]
[1646574254846,0.21359135,39022.0,39020.0,0.15]
[1646574255050,0.16344707,39027.0,39020.0,0.15]
[1646574255247,0.76879,39028.0,39020.0,0.15]
[1646574256112,0.16157283,39025.0,39020.0,0.15]
[1646574256616,0.16157283,39025.0,39019.0,0.00012516]
[1646574257216,0.19489768,39015.0,39009.0,0.064133]
[1646574257416,0.27932994,39023.0,39008.0,0.02347]
[1646574257615,0.06100328,39024.0,39016.0,0.006]
[1646574258016,0.004991,39023.0,39016.0,0.006]
[1646574258416,0.28036982,39029.0,39016.0,0.006]
[1646574258417,0.0011,39029.0,39016.0,0.006]
[1646574258621,0.16026268,39024.0,39018.0,0.00025242]
[1646574259447,0.42026268,39024.0,39018.0,0.00025242]
[1646574259644,0.42026268,39024.0,39014.0,0.364126]
[1646574259841,0.42026268,39024.0,39019.0,0.00025241]
[1646574260443,0.26,39024.0,39019.0,0.00025241]
[1646574260744,0.26,39024.0,39019.0,0.3]
[1646574260941,0.26,39024.0,39019.0,0.45025242]
[1646574261541,0.43211335,39024.0,39019.0,0.15025242]
[1646574261946,0.43211335,39024.0,39019.0,0.15]
[1646574262142,0.43211335,39024.0,39019.0,0.15024509]
[1646574262343,0.59127358,39024.0,39019.0,0.15024509]
[1646574262544,0.41916023,39024.0,39019.0,0.00024509]
[1646574263199,0.41916023,39024.0,39018.0,0.214118]
[1646574263401,0.41916023,39024.0,39019.0,0.00024509]
[1646574263601,0.16098433,39022.0,39019.0,0.00024509]
[1646574264005,0.41916023,39024.0,39019.0,0.00024509]
[1646574264202,0.26,39024.0,39019.0,0.00024509]
[1646574264405,0.26,39024.0,39023.0,0.15]
[1646574265001,0.26,39024.0,39023.0,0.45]
[1646574265202,0.26,39024.0,39023.0,0.55]
[1646574265503,0.26,39024.0,39019.0,0.514111]
[1646574265701,0.26,39024.0,39022.0,0.005]
[1646574266948,0.26,39024.0,39023.0,0.15]
[1646574267152,0.26,39024.0,39023.0,0.445]
[1646574267350,0.26,39024.0,39023.0,0.245]
[1646574267751,0.26,39024.0,39023.0,0.545]
[1646574267951,0.26,39024.0,39023.0,0.245]
[1646574268548,0.26,39024.0,39023.0,0.145]
[1646574268952,0.26,39024.0,39023.0,0.545]
[1646574269152,0.26,39024.0,39023.0,0.145]
[1646574269352,0.0001,39024.0,39023.0,1.0317]
[1646574269552,0.00025323,39029.0,39024.0,0.12818279]
[1646574269755,0.00025323,39029.0,39026.0,0.145]
[1646574270350,0.00025323,39029.0,39024.0,0.1]
[1646574270598,0.00025323,39029.0,39028.0,0.145]
[1646574272306,0.00025323,39029.0,39024.0,0.104]
[1646574272501,0.15183758,39032.0,39024.0,0.004]
[1646574272707,0.17776758,39032.0,39024.0,0.004]
[1646574272903,0.17776758,39032.0,39018.0,0.3]
[1646574272904,0.15860446,39022.0,39018.0,0.3]
[1646574273101,0.03091,39031.0,39017.0,0.145]
[1646574273501,0.05301271,39024.0,39018.0,0.3]
[1646574273702,0.05301271,39024.0,39015.0,0.27323]
[1646574274103,0.05301271,39024.0,39018.0,0.00025327]
[1646574274753,0.07894271,39024.0,39018.0,0.00025327]
[1646574274960,0.02593,39021.0,39018.0,0.00025327]
[1646574275153,0.59136416,39022.0,39014.0,0.006]
[1646574275154,0.18653353,39016.0,39014.0,0.006]
[1646574275754,0.004977,39015.0,39014.0,0.006]
[1646574276153,0.07338683,39015.0,39014.0,0.006]
[1646574276353,0.06840983,39015.0,39014.0,0.006]
[1646574276754,0.02593,39014.0,39002.0,0.445]
[1646574276953,0.17572985,39010.0,39002.0,0.3]
[1646574277154,0.17572985,39010.0,39000.0,0.145]
[1646574277955,0.21949154,39008.0,39000.0,0.145]
[1646574278204,0.36840983,39015.0,39000.0,0.145]
[1646574278205,0.004978,39015.0,39003.0,0.145]
[1646574278404,0.004978,39021.0,39004.0,0.3]
[1646574278602,0.004978,39022.0,39004.0,0.3]
[1646574278901,0.26,39008.0,39004.0,0.3]
[1646574279300,0.26,39008.0,39005.0,0.064136]
[1646574279501,0.569879,39026.0,39008.0,1.30083002]
[1646574279701,0.5399,39026.0,39009.0,0.3]
[1646574279900,0.4978,39029.0,39009.0,0.3]
[1646574280104,0.4978,39029.0,39016.0,0.0002531]
[1646574280105,0.02593,39028.0,39016.0,0.0002531]
[1646574280299,0.17779799,39021.0,39016.0,0.0002531]
[1646574280499,0.23953555,39021.0,39016.0,0.0002531]
[1646574280699,0.23953555,39021.0,39012.0,0.29227766]
[1646574281001,0.17779799,39021.0,39013.0,0.128239]
[1646574282049,1.1999,39017.0,39013.0,0.128239]
[1646574282452,1.1999,39017.0,39011.0,0.273237]
[1646574282653,1.1999,39017.0,39011.0,0.145]
[1646574282850,0.15748384,39015.0,39011.0,0.145]
[1646574283249,1.1999,39017.0,39011.0,0.145]
[1646574283449,0.16037415,39015.0,39011.0,0.209128]
[1646574283653,1.1999,39017.0,39012.0,0.3]
[1646574283853,1.1999,39017.0,39012.0,0.30025311]
[1646574284052,1.1999,39017.0,39016.0,0.145]
[1646574284253,1.1999,39017.0,39016.0,0.445]
[1646574284652,1.1999,39017.0,39016.0,0.545]
[1646574284850,1.1999,39017.0,39016.0,0.245]
[1646574285703,1.1999,39017.0,39016.0,0.145]
[1646574286903,0.255786,39017.0,39016.0,0.145]
[1646574287104,0.255786,39017.0,39016.0,0.445]
[1646574287304,0.255786,39017.0,39016.0,1.35763]
[1646574287504,0.255786,39017.0,39016.0,0.56288402]